[Event "45th FIDE Olympiad 2024"]
[Site "Budapest"]
[Date "2024.09.18"]
[Round "7.22"]
[White "Howell, David W L"]
[Black "Sargsyan, Shant"]
[Result "1/2-1/2"]
[ECO "C88"]
[WhiteElo "2677"]
[BlackElo "2649"]
[Annotator "RC"]
[PlyCount "115"]
[EventDate "2024.09.05"]
[EventType "team-tourn"]
[EventCountry "HUN"]
[SourceTitle "playchess.com"]
[Source "ChessBase"]
[SourceQuality "1"]
[WhiteTeam "England"]
[BlackTeam "Armenia"]
[WhiteTeamCountry "ENG"]
[BlackTeamCountry "ARM"]
[TimeControl "40/5400+30:1800+30"]

1. e4 {[%emt 0:00:26]} e5 {[%emt 0:01:38]} 2. Nf3 {[%emt 0:00:22]} Nc6 {[%emt 0:00:05]} 3. Bb5 {[%emt 0:00:11]} a6 {[%emt 0:00:28]} 4. Ba4 {[%emt 0:00:24]} Nf6 {[%emt 0:00:07]} 5. O-O {[%emt 0:00:24]} Be7 {[%emt 0:00:03]} 6. Re1 {[%emt 0:00:28]} b5 {[%emt 0:00:07]} 7. Bb3 {[%emt 0:00:06]} O-O {[%emt 0:00:04]} 8. a4 {[%emt 0:00:45]} b4 {[%emt 0:00:13]} 9. d3 {[%emt 0:01:52]} d6 {[%emt 0:00:31]} 10. Nbd2 {[%emt 0:00:32]} Na5 {[%emt 0:00:29]} 11. Ba2 {[%emt 0:00:11]} c5 {[%emt 0:00:07]} 12. c3 {[%emt 0:00:47]} Rb8 {[%emt 0:01:00]} 13. d4 {[%emt 0:00:31]} Qc7 {[%emt 0:01:24]} 14. dxe5 {[%emt 0:00:41]} dxe5 {[%emt 0:00:06]} 15. Nc4 {[%emt 0:00:12]} b3 {[%emt 0:03:52]} 16. Nxa5 {[%emt 0:00:37]} bxa2 {[%emt 0:00:04]} 17. Nc4 {[%emt 0:00:14]} Be6 {[%emt 0:02:01]} 18. Qe2 {[%emt 0:00:55]} Nd7 {[%emt 0:02:05]} 19. Rxa2 {[%emt 0:01:01]} Nb6 {[%emt 0:00:08]} 20. Nfd2 {[%emt 0:00:33]} Rfd8 {[%emt 0:04:22]} 21. Ra3 {[%emt 0:04:13]} a5 {[%emt 0:01:28]} 22. b3 {[%emt 0:01:27]} Nxc4 {[%emt 0:09:40]} 23. Nxc4 {[%emt 0:01:35]} h6 {[%emt 0:04:40]} 24. h3 {[%emt 0:25:04]} Rb7 {[%emt 0:09:16]} 25. Be3 {[%emt 0:12:17]} Rdb8 {[%emt 0:01:45]} 26. Rb1 {[%emt 0:01:22]} Bf8 {[%emt 0:06:52]} 27. Rb2 {[%emt 0:08:43]} Be7 {[%emt 0:02:02]} 28. Rb1 {[%emt 0:03:55]} Bf8 {[%emt 0:00:06]} 29. Rb2 {[%emt 0:00:06]} Be7 {[%emt 0:00:04]} 30. Kh1 {[%emt 0:03:28]} Bf8 {[%emt 0:02:55]} 31. Qf1 {[%emt 0:10:01]} Be7 {[%emt 0:02:29]} 32. Qe2 {[%emt 0:01:44]} Bf8 {[%emt 0:00:20]} 33. Qf1 {[%emt 0:00:25]} Be7 {[%emt 0:00:14]} 34. f3 {[%emt 0:02:36]} Bf8 {[%emt 0:07:47]} 35. Qe2 {[%emt 0:01:36]} Kh8 {[%emt 0:01:36]} 36. Qf1 {[%emt 0:00:29]} Kg8 {[%emt 0:00:17]} 37. Qe2 {[%emt 0:12:50]} Kh8 {[%emt 0:01:04]} 38. Bg1 {[%emt 0:00:44]} Kh7 {[%emt 0:03:02]} 39. Qf1 {[%emt 0:00:27]} Kh8 {[%emt 0:03:20]} 40. Qe2 {[%emt 0:04:40]} Kh7 {[%emt 0:00:53]} 41. Qf1 {[%emt 0:07:09]} Kh8 {[%emt 0:01:18]} 42. Bf2 {[%emt 0:00:29]} Kh7 {[%emt 0:03:13]} 43. Qe2 {[%emt 0:00:09]} Kh8 {[%emt 0:00:19]} 44. Qf1 {[%emt 0:00:25]} Kh7 {[%emt 0:00:17]} 45. Qe2 {[%emt 0:00:07]} Kh8 {[%emt 0:00:36]} 46. Kg1 {[%emt 0:00:32]} Kh7 {[%emt 0:01:15]} 47. Qf1 {[%emt 0:01:54]} Kh8 {[%emt 0:02:30]} 48. Qe2 {[%emt 0:00:30]} Kh7 {[%emt 0:00:07]} 49. g4 {[%emt 0:00:19]} Be7 {[%emt 0:06:05]} 50. Kg2 {[%emt 0:04:48]} Bg5 {[%emt 0:06:14]} 51. Rb1 {[%emt 0:00:02]} Bf4 {[%emt 0:01:48]} 52. Bg3 {[%emt 0:03:16]} Kg8 {[%emt 0:00:43]} 53. h4 {[%emt 0:02:17]} g6 {[%emt 0:03:53]} 54. Kf2 {[%emt 0:08:26]} Kh7 {[%emt 0:02:58]} 55. Kg2 {[%emt 0:01:27]} Kg8 {[%emt 0:00:19]} 56. Kf2 {[%emt 0:01:07]} Kh7 {[%emt 0:00:33]} 57. Kg2 {[%emt 0:04:41]} Kg8 {[%emt 0:00:42]} 58. Bf2 1/2-1/2

[Event "45th FIDE Olympiad 2024"]
[Site "Budapest"]
[Date "2024.09.18"]
[Round "7.22"]
[White "Etienne, Angelo"]
[Black "Abdelaziz Bokhit, Badjoiri"]
[Result "1-0"]
[WhiteElo "2122"]
[BlackElo "1778"]
[PlyCount "65"]
[EventDate "2024.09.05"]
[EventType "team-tourn"]
[EventCountry "HUN"]
[WhiteTeam "Haiti"]
[BlackTeam "Chad"]
[WhiteTeamCountry "HAI"]
[BlackTeamCountry "CHD"]
[TimeControl "40/5400+30:1800+30"]

1. Nf3 d5 2. g3 Nf6 3. Bg2 e6 4. O-O Be7 5. d3 O-O 6. Nbd2 Re8 7. c4 d4 8. Nb3 c5 9. e3 Nc6 10. exd4 cxd4 11. Re1 Bd6 12. a3 e5 13. Bg5 h6 14. Bxf6 Qxf6 15. Nfxd4 Nxd4 16. Nxd4 Bc5 17. Nf3 a5 18. d4 Bd6 19. dxe5 Bxe5 20. Qd5 Bg4 21. Nxe5 Rxe5 22. Qxe5 Qb6 23. Qe4 Be6 24. Qxb7 Qxb7 25. Bxb7 Rb8 26. Bd5 Bh3 27. c5 Rxb2 28. c6 Rd2 29. Bg2 Be6 30. c7 Rc2 31. Rac1 Ra2 32. Rxe6 fxe6 33. c8=Q+ 1-0

[Event "45th FIDE Olympiad 2024"]
[Site "Budapest"]
[Date "2024.09.18"]
[Round "7.23"]
[White "Sargissian, Gabriel"]
[Black "Adams, Michael"]
[Result "1/2-1/2"]
[ECO "D02"]
[WhiteElo "2646"]
[BlackElo "2661"]
[Annotator "TA"]
[PlyCount "60"]
[EventDate "2024.09.05"]
[EventType "team-tourn"]
[EventCountry "HUN"]
[SourceTitle "playchess.com"]
[Source "ChessBase"]
[SourceQuality "1"]
[WhiteTeam "Armenia"]
[BlackTeam "England"]
[WhiteTeamCountry "ARM"]
[BlackTeamCountry "ENG"]
[TimeControl "40/5400+30:1800+30"]

{[%evp 9,60,29,18,14,23,20,32,11,6,21,18,25,31,18,19,8,14,11,13,20,22,0,16,3,6,0,9,0,4,0,21,6,21,-10,-7,-17,-8,-2,8,-24,-14,-10,-8,-5,-8,-5,-8,-8,-8,-8,0,0,0]} 1. Nf3 {[%emt 0:00:05][%cal Bg1f3,Bf3h4,Bh4g2,Bg2f4][%mdl 32]} d5 {[%emt 0:00:12]} 2. g3 {[%emt 0:00:08]} Nd7 {[%emt 0:01:16]} 3. d4 {[%emt 0:03:36]} Nb6 {[%emt 0:00:11]} 4. Nc3 {[%emt 0:01:22]} Bf5 {[%emt 0:01:41]} 5. Nh4 {[%emt 0:00:51]} Bg4 {[%emt 0:00:33][%cal Bf5g4,Bg4h5,Bh5g6][%mdl 32]} 6. Qd3 {[%emt 0:02:07]} e6 {[%emt 0:03:01]} 7. e4 {[%emt 0:05:45]} Be7 {[%emt 0:10:18]} 8. h3 {[%emt 0:05:31] White is slightly better.} Bh5 {[%emt 0:03:23]} 9. Ng2 {[%emt 0:16:05]} Bg6 {[%emt 0:06:07]} 10. Nf4 {[%emt 0:01:01]} dxe4 {[%emt 0:02:44]} 11. Nxe4 {[%emt 0:00:31]} Bf5 {[%emt 0:07:42]} 12. g4 {[%emt 0:01:19]} Bxe4 {[%emt 0:00:08]} 13. Qxe4 {[%emt 0:00:05]} c6 {[%emt 0:05:11]} 14. c3 {[%emt 0:00:44]} Nf6 {[%emt 0:00:08]} 15. Qe2 {[%emt 0:06:27]} Nfd5 {[%emt 0:04:08]} 16. Nd3 {[%emt 0:01:03]} a5 {[%emt 0:05:30]} 17. a4 {[%emt 0:06:49]} O-O {[%emt 0:01:26]} 18. Bg2 {[%emt 0:03:17]} Rc8 {[%emt 0:02:41]} 19. O-O {[%emt 0:01:29][%cal Bh1f1,Bf1d1,Bd1d3][%mdl 32]} c5 {[%emt 0:02:25]} 20. dxc5 {[%emt 0:02:15]} Bxc5 {[%emt 0:00:07]} 21. Nf4 {[%emt 0:06:33]} Qc7 {[%emt 0:04:45]} 22. Nxd5 {[%emt 0:01:41]} Nxd5 {[%emt 0:00:04]} 23. Rd1 {[%emt 0:01:05]} b6 {[%emt 0:06:20]} 24. Rd3 {[%emt 0:04:47]} Nf4 {[%emt 0:03:25]} 25. Bxf4 {[%emt 0:00:37] The position is equal.} Qxf4 {[%emt 0:00:02]} 26. Qd2 {[%emt 0:02:07]} Qxd2 {[%emt 0:05:59]} 27. Rxd2 {[%emt 0:00:07]} Rcd8 {[%emt 0:02:58]} 28. Rad1 {[%emt 0:00:26]} Rxd2 {[%emt 0:00:08]} 29. Rxd2 {[%emt 0:00:04]} g5 {[%emt 0:00:26]} 30. Kf1 {[%emt 0:00:45]} Kg7 {[%emt 0:02:55] A rather calm draw.   Weighted Error Value: White=0.07 (flawless) /Black=0.03 (flawless) .  Inaccurate:     	White=2     	---        OK:         	White=11    	Black=14} 1/2-1/2

[Event "45th FIDE Olympiad 2024"]
[Site "Budapest"]
[Date "2024.09.18"]
[Round "7.23"]
[White "Adam, Jamal"]
[Black "Victor, Wyclef"]
[Result "1-0"]
[WhiteElo "2013"]
[BlackElo "1924"]
[PlyCount "141"]
[EventDate "2024.09.05"]
[EventType "team-tourn"]
[EventCountry "HUN"]
[WhiteTeam "Chad"]
[BlackTeam "Haiti"]
[WhiteTeamCountry "CHD"]
[BlackTeamCountry "HAI"]
[TimeControl "40/5400+30:1800+30"]

1. e4 c5 2. Nf3 Nc6 3. d4 cxd4 4. Nxd4 Nf6 5. Nc3 d6 6. Be2 g6 7. Be3 Bg7 8. Qd2 O-O 9. O-O-O Qa5 10. Nb3 Qc7 11. h4 Be6 12. h5 Rfc8 13. hxg6 fxg6 14. Bh6 Bh8 15. f4 Na5 16. Kb1 Nc4 17. Bxc4 Qxc4 18. f5 Bf7 19. Qf4 d5 20. Rd4 Qc6 21. e5 Ne4 22. Nxe4 Qxc2+ 23. Ka1 dxe4 24. Rd2 Qc6 25. e6 Be8 26. Re2 Qb5 27. fxg6 Bxg6 28. Rf2 Bf6 29. g4 Qe5 30. Rhf1 Qxe6 31. g5 Bg7 32. Bxg7 Kxg7 33. Nd4 Qd5 34. Qe3 Rf8 35. Qc3 Kg8 36. b3 Rxf2 37. Rxf2 Rd8 38. Nc2 Qxg5 39. Ne3 Qb5 40. Nc4 Rd1+ 41. Kb2 Rb1+ 42. Kxb1 e3+ 43. Rc2 Qc5 44. Qxe3 Qxe3 45. Nxe3 h5 46. Kc1 Bxc2 47. Kxc2 Kf7 48. Kd3 Ke6 49. Ke4 b6 50. Nf5 Kf6 51. Kf4 e6 52. Nh4 a6 53. Nf3 b5 54. Ke4 Ke7 55. Ke5 Kd7 56. b4 Ke7 57. a3 Kd7 58. Nh4 Ke7 59. Ng6+ Kf7 60. Nf4 h4 61. Nxe6 Kg6 62. Kf4 Kf6 63. Nc5 h3 64. Kg3 Ke5 65. Nxa6 Kd6 66. Kxh3 Kc6 67. Kg3 Kb7 68. Nc5+ Kc6 69. Kf4 Kd5 70. Na6 Kc4 71. Ke4 1-0

[Event "45th FIDE Olympiad 2024"]
[Site "Budapest"]
[Date "2024.09.18"]
[Round "7.24"]
[White "Jones, Gawain C B"]
[Black "Hovhannisyan, Robert"]
[Result "1/2-1/2"]
[ECO "A21"]
[WhiteElo "2646"]
[BlackElo "2619"]
[Annotator "TA"]
[PlyCount "93"]
[EventDate "2024.09.05"]
[EventType "team-tourn"]
[EventCountry "HUN"]
[SourceTitle "playchess.com"]
[Source "ChessBase"]
[SourceQuality "1"]
[WhiteTeam "England"]
[BlackTeam "Armenia"]
[WhiteTeamCountry "ENG"]
[BlackTeamCountry "ARM"]
[TimeControl "40/5400+30:1800+30"]

{[%evp 17,93,0,6,5,16,0,18,11,22,8,31,27,82,79,78,78,67,75,87,62,71,61,103,100,101,103,97,105,103,0,5,0,0,0,0,8,54,0,0,0,0,0,0,0,0,0,0,0,0,0,0,0,0,0,0,0,0,0,0,0,0,0,0,0,0,0,0,0,0,0,0,0,0,0,0,0,0,0]} 1. c4 {[%emt 0:00:18]} e5 {[%emt 0:00:20]} 2. Nc3 {[%emt 0:00:08]} Bb4 {[%emt 0:00:30]} 3. Nd5 {[%emt 0:00:08]} Be7 {[%emt 0:00:11]} 4. Nf3 {[%emt 0:00:26]} d6 {[%emt 0:00:43]} 5. g3 {[%emt 0:01:45]} Nf6 {[%emt 0:00:28]} 6. Nc3 {[%emt 0:00:13] A21: English Opening: 1...e5 2 Nc3.} c5 {[%emt 0:02:51]} 7. Bg2 {[%emt 0:00:08]} Nc6 {[%emt 0:00:14]} 8. d3 {[%emt 0:01:19]} h6 {[%emt 0:02:28]} 9. O-O $146 {[%emt 0:00:13]} ({Predecessor:} 9. Nd2 Be6 10. Nd5 Qd7 11. Nb1 Bd8 12. h3 O-O 13. Nbc3 Rb8 14. Bd2 a6 15. a4 {½-½ Martirosyan,H (2675)-Hovhannisyan,R (2596) Jermuk Avagyan Memorial 2023 (1)}) 9... Be6 {[%emt 0:00:41]} 10. e4 {[%emt 0:00:07]} Qd7 {[%emt 0:04:14]} 11. Nd5 {[%emt 0:00:11]} Bg4 {[%emt 0:05:58]} 12. Ne3 {[%emt 0:00:24]} h5 {[%emt 0:03:38]} 13. Bd2 {[%emt 0:07:58]} Nh7 {[%emt 0:12:04]} 14. a3 {[%emt 0:07:52]} Bg5 {[%emt 0:19:30] [#]} (14... h4 $11 {keeps the balance.}) 15. Nxg4 $1 $16 {[%emt 0:03:37]} Bxd2 {[%emt 0:00:05]} 16. Ngxe5 {[%emt 0:01:22]} dxe5 {[%emt 0:00:48]} 17. Qxd2 {[%emt 0:00:27]} O-O-O {[%emt 0:02:59]} 18. b4 {[%emt 0:06:43]} f6 {[%emt 0:05:42]} 19. Qe3 {[%emt 0:06:42]} Nd4 {[%emt 0:10:38]} 20. Nxd4 {[%emt 0:01:06]} Qxd4 {[%emt 0:00:07]} 21. Rfd1 {[%emt 0:01:03]} ({And not} 21. bxc5 Qxe3 22. fxe3 Rxd3 $15) 21... h4 {[%emt 0:02:30]} 22. Qxd4 {[%emt 0:13:10]} Rxd4 {[%emt 0:00:12]} 23. bxc5 {[%emt 0:00:36]} (23. Bh3+ $16 Kb8 24. Bf5 (24. bxc5 hxg3 25. hxg3 Ng5 $16) (24. gxh4 Nf8 $11)) 23... hxg3 $11 {[%emt 0:02:10]} 24. fxg3 {[%emt 0:00:12]} Rhd8 {[%emt 0:02:01]} 25. Bf1 {[%emt 0:00:26]} Ng5 {[%emt 0:01:36]} 26. Rdb1 {[%emt 0:12:39]} Nf3+ {[%emt 0:02:53]} (26... Kc7 $1 $11) 27. Kf2 {[%emt 0:01:01]} (27. Kg2 $14 Nd2 28. Rb5 Nxf1 29. Rxf1 Rxd3 30. Rfb1 Rxa3 31. Rxb7) 27... Nd2 $1 $11 {[%emt 0:00:08]} 28. Rb4 {[%emt 0:01:13]} Nxf1 {[%emt 0:00:17]} 29. Rxf1 {[%emt 0:00:11]} Rxd3 {[%emt 0:00:09]} 30. Rfb1 {[%emt 0:00:39]} Rxa3 {[%emt 0:04:15]} 31. R1b2 {[%emt 0:01:06]} Rd7 {[%emt 0:02:26]} 32. c6 $1 {[%emt 0:00:14]} bxc6 {[%emt 0:00:04]} 33. Rb8+ {[%emt 0:00:34]} Kc7 {[%emt 0:00:05]} 34. R2b7+ {[%emt 0:01:41]} Kd6 {[%emt 0:00:05]} 35. c5+ {[%emt 0:00:04]} Ke7 {[%emt 0:00:22]} 36. Rxd7+ {[%emt 0:05:13]} Kxd7 {[%emt 0:00:04]} 37. Rb7+ {[%emt 0:00:07]} Ke6 {[%emt 0:01:27]} 38. Rxg7 {[%emt 0:00:37]} Ra2+ {[%emt 0:00:38]} 39. Kf3 {[%emt 0:00:29]} Rxh2 {[%emt 0:01:37]} 40. Rc7 {[%emt 0:00:37]} Rc2 {[%emt 0:01:02]} 41. Rxc6+ {[%emt 0:32:51]} Kf7 {[%emt 0:31:32]} 42. Kg4 {[%emt 0:05:30]} a5 {[%emt 0:05:12]} 43. Ra6 {[%emt 0:00:47]} Kg6 {[%emt 0:00:17]} 44. Rxa5 {[%emt 0:00:21]} Rc3 {[%emt 0:00:04]} 45. Rb5 {[%emt 0:02:46]} Re3 {[%emt 0:00:17]} 46. Rb4 {[%emt 0:00:20]} Rc3 {[%emt 0:00:06]} 47. Rb5 {[%emt 0:00:30]} 1/2-1/2

[Event "45th FIDE Olympiad 2024"]
[Site "Budapest"]
[Date "2024.09.18"]
[Round "7.24"]
[White "Guillaume, Jude Mirvens"]
[Black "Hassaballa, Ahmed Hassaballa"]
[Result "1-0"]
[WhiteElo "1956"]
[BlackElo "1902"]
[PlyCount "97"]
[EventDate "2024.09.05"]
[EventType "team-tourn"]
[EventCountry "HUN"]
[WhiteTeam "Haiti"]
[BlackTeam "Chad"]
[WhiteTeamCountry "HAI"]
[BlackTeamCountry "CHD"]
[TimeControl "40/5400+30:1800+30"]

1. d4 Nf6 2. c4 c5 3. d5 e6 4. Nc3 d6 5. e4 Be7 6. Bd3 O-O 7. Nge2 exd5 8. exd5 Nbd7 9. Bc2 Ne5 10. b3 a6 11. O-O Re8 12. f4 Ng6 13. Bb2 Bf8 14. h3 Bd7 15. Qd3 Qe7 16. Rf3 Nh4 17. Rg3 Bf5 18. Qd2 Bxc2 19. Qxc2 Ng6 20. Qf5 Rab8 21. a4 Qd7 22. Qxd7 Nxd7 23. Kf2 Nf6 24. Re3 Rxe3 25. Kxe3 Re8+ 26. Kf3 Nh4+ 27. Kf2 h5 28. Rg1 Nf5 29. g4 hxg4 30. hxg4 Ne3 31. g5 Nd7 32. Ng3 f5 33. Kf3 Nc2 34. Nxf5 Nd4+ 35. Nxd4 cxd4 36. Ne4 Nc5 37. Re1 Rc8 38. Nxc5 dxc5 39. Re6 Rd8 40. Ke4 Bd6 41. f5 Kf7 42. a5 Bc7 43. Ba3 Bd6 44. Bc1 Bc7 45. Bd2 Rh8 46. d6 Bd8 47. g6+ Kf8 48. d7 Be7 49. Bg5 1-0

[Event "45th FIDE Olympiad 2024"]
[Site "Budapest"]
[Date "2024.09.18"]
[Round "7.25"]
[White "Vachier-Lagrave, Maxime"]
[Black "Mchedlishvili, Mikheil"]
[Result "1-0"]
[ECO "D12"]
[WhiteElo "2731"]
[BlackElo "2574"]
[Annotator "TA"]
[PlyCount "91"]
[EventDate "2024.09.05"]
[EventType "team-tourn"]
[EventCountry "HUN"]
[SourceTitle "playchess.com"]
[Source "ChessBase"]
[SourceQuality "1"]
[WhiteTeam "France"]
[BlackTeam "Georgia"]
[WhiteTeamCountry "FRA"]
[BlackTeamCountry "GEO"]
[TimeControl "40/5400+30:1800+30"]

{[%evp 12,91,20,29,29,14,23,21,19,28,28,0,0,0,0,0,0,0,12,0,0,0,22,15,28,16,11,22,15,24,12,17,5,0,0,0,6,0,102,108,104,107,166,166,187,153,165,178,166,100,116,112,109,100,106,105,105,91,89,99,222,221,229,227,217,213,200,200,193,181,250,244,298,316,375,393,506,502,557,564,637,637]} 1. c4 {[%emt 0:00:02]} c6 {[%emt 0:03:00]} 2. d4 {[%emt 0:00:39]} d5 {[%emt 0:00:22]} 3. Nf3 {[%emt 0:00:05]} Nf6 {[%emt 0:00:25]} 4. e3 {[%emt 0:00:04]} Bf5 {[%emt 0:03:28]} 5. Nc3 {[%emt 0:00:18]} e6 {[%emt 0:00:38]} 6. Nh4 {[%emt 0:00:11]} Be4 {[%emt 0:01:00]} 7. f3 {[%emt 0:00:13]} Bg6 {[%emt 0:00:05]} 8. Bd2 {[%emt 0:00:13]} Be7 {[%emt 0:05:14]} 9. Nxg6 {[%emt 0:04:00]} hxg6 {[%emt 0:00:08] The position is equal.} 10. Qc2 {[%emt 0:00:06]} a6 {[%emt 0:04:56]} 11. O-O-O {[%emt 0:05:46]} dxc4 {[%emt 0:06:57]} 12. Bxc4 {[%emt 0:00:28]} b5 {[%emt 0:00:33]} 13. Be2 {[%emt 0:00:12]} Nbd7 {[%emt 0:08:11]} 14. Kb1 {[%emt 0:00:25]} c5 $1 {[%emt 0:06:45] [#]} 15. d5 $1 {[%emt 0:00:29]} exd5 {[%emt 0:08:54]} 16. Bc1 {[%emt 0:00:09][%cal Og2g4]} Nb6 {[%emt 0:05:38]} 17. g4 $1 {[%emt 0:07:44]} b4 {[%emt 0:07:49] [#]} 18. Nxd5 {[%emt 0:00:53]} Nfxd5 {[%emt 0:05:47]} 19. e4 {[%emt 0:00:13]} Nc3+ {[%emt 0:01:39]} 20. bxc3 {[%emt 0:00:05]} Qc8 {[%emt 0:00:20]} 21. cxb4 {[%emt 0:06:37]} O-O $1 {[%emt 0:02:11]} 22. Be3 {[%emt 0:15:28]} Qb7 {[%emt 0:02:57]} 23. Bxc5 {[%emt 0:00:10]} Bxc5 {[%emt 0:07:57]} 24. bxc5 {[%emt 0:03:40]} Nd5+ {[%emt 0:00:20]} (24... Rfc8 $11 25. Qb2 Rxc5) 25. Ka1 $16 {[%emt 0:00:39]} Ne3 {[%emt 0:00:06][%csl LRc2,LRd1]} 26. Qb1 {[%emt 0:11:46]} Qc7 {[%emt 0:02:28]} (26... Qe7 $16 {was called for.} 27. Rc1 Rfc8) 27. Rc1 $18 {[%emt 0:00:08]} Rfd8 {[%emt 0:09:26]} 28. Qb3 {[%emt 0:02:15]} Qf4 {[%emt 0:00:30]} 29. Qc3 {[%emt 0:00:20] Prevents Rd2. Black must now prevent h4.} Rac8 {[%emt 0:01:22]} 30. Bd1 {[%emt 0:09:44]} (30. Bxa6 $6 Ra8 31. Bd3 Qxf3 $16) (30. h4 $18) 30... Rc7 {[%emt 0:01:18]} 31. Bb3 {[%emt 0:07:32]} Rdc8 {[%emt 0:00:41][%cal Oc7c5]} 32. Qd4 {[%emt 0:00:55] Hoping for Rc3.} Qxf3 {[%emt 0:00:29][%cal Oc7c5]} 33. Rhe1 $36 {[%emt 0:00:04][%mdl 2048] Black is under strong pressure.} Ng2 {[%emt 0:01:00]} 34. Rf1 {[%emt 0:07:03]} Qe3 {[%emt 0:00:35]} 35. Rcd1 {[%emt 0:02:39][%cal Bc1d1,Bd1d4,Bd4d7,Bd7f7,Bf7f3][%mdl 32] aiming for Rf2. Really sharp!} g5 {[%emt 0:03:18] [#] Black cannot hold the game after this.} (35... Qxd4+ 36. Rxd4 Ne3 37. Re1) (35... a5 $16) 36. Rxf7 $1 {[%emt 0:03:45][%csl Gf7][%cal Rd4g7][%mdl 512]} Qxd4+ {[%emt 0:00:52]} (36... Rxf7 $2 {loses.} 37. Bxf7+ Kh7 38. Qxe3 Nxe3 39. Rd6 $18) 37. Rxd4 {[%emt 0:00:04]} Rxf7 {[%emt 0:00:04] [#]} 38. Rd7 $1 {[%emt 0:00:04]} Rxc5 {[%emt 0:00:11] And now ...Rc1+ would win.} ({Don't blunder} 38... Rcf8 $2 39. c6 (39. Bxf7+ Rxf7 40. c6 Rf1+ 41. Kb2 Ne3 $18) 39... Kh7 40. Bxf7 $18) 39. Rxf7 {[%emt 0:00:43][%mdl 4096] Endgame. KRB-KRN} Kh7 {[%emt 0:00:23]} 40. Kb2 {[%emt 0:04:33]} Ne3 {[%emt 0:00:28]} (40... Ne1 $142) 41. h3 {[%emt 0:30:45]} a5 {[%emt 0:02:36][%cal Ba6a5,Ba5a4][%mdl 32]} 42. Rf3 {[%emt 0:00:00]} Nc4+ {[%emt 0:02:20]} 43. Kc3 {[%emt 0:00:00]} Nb6+ {[%emt 0:05:13]} 44. Kd4 {[%emt 0:00:00] White is clearly winning.} Rb5 {[%emt 0:00:06]} 45. e5 {[%emt 0:00:00] Strongly threatening e6.} a4 {[%emt 0:01:02]} 46. Be6 {[%emt 0:00:00] Weighted Error Value: White=0.06 (flawless) /Black=0.24 (precise) .  Mistake:       	White=1     	Black=4      Inaccurate:     	White=1     	---        OK:         	White=16    	Black=13     Best:        	White=6     	Black=4      Strong:       	White=2     	Black=2} 1-0

[Event "45th FIDE Olympiad 2024"]
[Site "Budapest"]
[Date "2024.09.18"]
[Round "7.25"]
[White "Liyanage, Ranindu Dilshan"]
[Black "Bodin-Hullin, Thomas"]
[Result "1-0"]
[WhiteElo "2366"]
[BlackElo "1855"]
[PlyCount "77"]
[EventDate "2024.09.05"]
[EventType "team-tourn"]
[EventCountry "HUN"]
[WhiteTeam "Sri Lanka"]
[BlackTeam "Senegal"]
[WhiteTeamCountry "SRI"]
[BlackTeamCountry "SEN"]
[TimeControl "40/5400+30:1800+30"]

1. Nf3 c5 2. b3 d5 3. e3 Nc6 4. Bb2 Nf6 5. Bb5 Bg4 6. h3 Bh5 7. g4 Bg6 8. Ne5 Qc7 9. Bxc6+ bxc6 10. d3 e6 11. Nd2 Nd7 12. Nxd7 Qxd7 13. Qe2 f6 14. f4 Bd6 15. Nf3 Qc7 16. h4 h5 17. g5 e5 18. gxf6 gxf6 19. fxe5 fxe5 20. Qg2 Rg8 21. Qh3 Qe7 22. Rg1 Kd8 23. Rg5 d4 24. e4 Kc7 25. O-O-O Bf7 26. Rxg8 Rxg8 27. Ng5 Rxg5 28. hxg5 Qxg5+ 29. Kb1 Qg4 30. Qxg4 hxg4 31. Bc1 Be7 32. Bd2 Kd7 33. Rf1 Ke6 34. Be1 Bg5 35. Bg3 Bg6 36. Kb2 Bf4 37. Bxf4 exf4 38. Rxf4 Bh5 39. Rf5 1-0